bitfinex-derivatives/quotes_ETHF0:USTF0_20250704
["timestamp","ask_amount","ask_price","bid_price","bid_amount"]
[1751645916094,2.24498,2484.3,2484.2,0.80478]
[1751645916501,0.80486,2484.1,2484.0,0.80485]
[1751645916697,0.80483,2484.2,2484.1,0.80482]
[1751645916994,0.80483,2484.2,2483.8,4.01272]
[1751645916995,0.80491,2483.9,2483.8,4.01272]
[1751645917293,0.80499,2483.7,2483.6,0.80498]
[1751645917592,0.80497,2483.7,2483.6,0.80498]
[1751645918098,0.805,2483.6,2483.5,4.01282]
[1751645919189,1.4402,2483.8,2483.5,4.01282]
[1751645919397,2.24516,2483.8,2483.7,0.80497]
[1751645919791,0.805,2483.7,2483.6,0.80498]
[1751645920495,1.4402,2483.8,2483.7,0.80497]
[1751645920997,0.69,2484.1,2484.0,0.80487]
[1751645921197,1.49486,2484.1,2484.0,0.80487]
[1751645921495,0.8049,2484.0,2483.9,0.80488]
[1751645921686,0.80494,2483.9,2483.6,0.6547]
[1751645921893,0.80499,2483.7,2483.6,0.80497]
[1751645922600,0.00023,2483.4,2483.2,3.2078]
[1751645922802,0.00023,2483.4,2483.3,0.8051]
[1751645923002,0.00023,2483.4,2483.3,2.2397]
[1751645923298,0.00023,2483.4,2483.3,0.8051]
[1751645926900,0.00023,2483.4,2483.3,5.8051]
[1751645929798,3.2078,2484.0,2483.9,0.80491]
[1751645930095,3.2078,2484.3,2483.7,2.0124]
[1751645930299,0.6941,2484.4,2484.3,0.80478]
[1751645930500,3.9019,2484.4,2484.3,0.80478]
[1751645930900,5.2963,2484.4,2484.3,0.80478]
[1751645931800,5.2963,2484.4,2483.9,1.3176]
[1751645932103,3.2078,2484.1,2484.0,0.80487]
[1751645932304,4.01264,2484.1,2484.0,0.80487]
[1751645932498,5.40704,2484.1,2484.0,0.80487]
[1751645932899,5.40707,2484.1,2484.0,0.80487]
[1751645933702,0.80489,2484.0,2483.9,0.80487]
[1751645933901,0.80492,2483.9,2483.8,0.80491]
[1751645934400,0.6774,2483.9,2483.8,0.80491]
[1751645934701,1.4175,2484.0,2483.9,0.80491]
[1751645935097,2.22237,2484.0,2483.9,0.80491]
[1751645935304,2.2224,2484.0,2483.9,0.80491]
[1751645935602,1.4175,2484.0,2483.9,0.80491]
[1751645935807,2.22237,2484.0,2483.9,0.80491]
[1751645936000,0.80494,2483.9,2483.8,0.80491]
[1751645936195,2.14944,2483.9,2483.8,0.80491]
[1751645936707,0.80498,2483.8,2483.7,0.80494]
[1751645936902,5.35728,2483.8,2483.7,0.80494]
[1751645937102,10.35728,2483.8,2483.7,0.80494]
[1751645937295,0.80502,2483.7,2483.6,0.80498]
[1751645937500,2.80762,2483.7,2483.6,0.80498]
[1751645937706,2.7108,2483.7,2483.6,0.80498]
[1751645937907,3.51577,2483.7,2483.6,0.80498]
[1751645938306,2.7108,2483.7,2483.6,0.80498]
[1751645938511,3.51577,2483.7,2483.6,0.80498]
[1751645939003,0.80506,2483.5,2483.4,0.80502]
[1751645939204,4.01286,2483.5,2483.4,0.80502]
[1751645939805,3.2078,2483.5,2483.4,0.80502]
[1751645940004,43.5108,2483.7,2483.6,0.805]
[1751645940207,44.31577,2483.7,2483.6,0.805]
[1751645940604,0.80505,2483.6,2483.5,0.80501]
[1751645940908,2.19855,2483.6,2483.5,0.80501]
[1751645941107,3.2078,2482.8,2482.2,5.55338606]
[1751645941406,0.74931394,2482.2,2481.0,10.4356908]
[1751645941607,3.2078,2481.1,2480.5,3.2078]
[1751645941905,61.7561121,2481.0,2480.3,0.19626626]
[1751645942110,0.80604,2480.4,2480.3,0.19626626]
[1751645942310,3.2078,2480.5,2480.3,0.19626626]
[1751645942510,2.23108621,2480.4,2480.3,0.19626626]
[1751645942703,1.42504621,2480.4,2480.3,0.19626626]
[1751645942906,13.39404621,2480.4,2480.3,15.77001324]
[1751645943111,14.20008621,2480.4,2480.3,15.77001324]
[1751645943305,14.20008621,2480.4,2480.3,2.11282982]
[1751645943512,13.39404621,2480.4,2480.3,2.11282982]
[1751645943808,2.23108621,2480.4,2480.3,2.11282982]
[1751645944010,14.20008621,2480.4,2480.3,0.19626626]
[1751645944210,6.42504621,2480.4,2477.7,4.03457]
[1751645944418,3.2078,2480.0,2479.4,3.2078]
[1751645944713,1.50983702,2479.9,2479.7,4.0271]
[1751645944903,1.50983702,2479.8,2479.7,4.0271]
[1751645945102,2.31607702,2479.8,2479.4,3.2078]
[1751645945408,1.50983702,2479.7,2479.6,0.8063]
[1751645945605,1.50983702,2479.7,2479.1,3.2078]
[1751645945805,3.2078,2479.5,2478.5,4.538]
[1751645946005,3.2078,2479.2,2478.5,4.0271]
[1751645946206,3.2078,2478.8,2477.6,0.19820949]
[1751645946407,3.2078,2478.8,2478.1,3.2078]
[1751645946408,5.2024,2478.7,2478.1,3.2078]
[1751645946608,0.00601563,2478.7,2478.4,4.01446]
[1751645946815,1.50211658,2478.6,2478.5,0.80666]
[1751645947112,2.33288597,2479.8,2478.9,4.0271]
[1751645947312,2.33288597,2479.7,2479.4,4.0271]
[1751645947516,12.495,2479.6,2478.5,3.2078]
[1751645947811,12.495,2479.6,2478.7,4.0271]
[1751645947812,5.54068597,2479.2,2478.7,4.0271]
[1751645948015,2.10788,2479.1,2478.6,4.0271]
[1751645948313,3.2078,2478.9,2478.2,3.2078]
[1751645948511,41.8678,2478.8,2478.4,4.0271]
[1751645948709,41.8678,2478.8,2478.3,0.80672]
[1751645948914,42.67437,2478.8,2478.2,8.04164]
[1751645949112,1.3728,2478.8,2478.2,3.2078]
[1751645949412,3.2078,2478.5,2477.6,3.40600949]
[1751645949713,1.3728,2478.4,2477.6,3.40600949]
[1751645949915,0.80678,2478.2,2477.6,3.40600949]
[1751645950119,1.3728,2478.1,2477.6,3.40600949]
[1751645950612,4.36584,2478.1,2477.6,8.3201607]
[1751645950918,4.36584,2478.1,2477.9,3.2078]
[1751645951217,4.36584,2478.1,2477.6,0.19820949]
[1751645951523,2.99304,2478.1,2478.0,4.83392]
[1751645951817,58.7412,2479.3,2478.9,4.0271]
[1751645951818,0.41177476,2479.0,2478.9,4.0271]
[1751645952110,1.4332,2479.7,2479.4,0.80636]
[1751645952310,2.23948,2479.7,2479.3,0.80638]
[1751645952522,0.80631,2479.6,2479.2,0.80641]
[1751645952713,1.4332,2479.5,2479.0,4.0271]
[1751645952913,0.80638,2479.4,2479.0,0.80647]
[1751645953109,3.2078,2479.2,2478.3,3.2078]
[1751645953415,42.4692,2479.1,2478.6,0.8066]
[1751645953615,0.80655,2478.9,2478.6,0.80662]
[1751645953815,0.80659,2478.7,2478.5,0.80664]
[1751645954016,2.23983,2478.6,2478.4,0.80668]
[1751645954214,1.4332,2478.6,2478.4,0.80668]
[1751645954518,6.4332,2478.6,2477.7,3.2078]
[1751645954711,6.4332,2478.6,2478.0,0.80681]
[1751645954712,0.80677,2478.2,2478.0,0.80681]
[1751645954912,1.3908,2478.1,2477.9,0.80683]
[1751645955110,2.1976,2478.1,2477.9,0.80683]
[1751645955306,1.3908,2478.1,2477.7,3.2078]
[1751645955510,1.3908,2478.1,2477.4,3.2078]
[1751645955707,0.80692,2477.7,2477.4,3.2078]
[1751645956021,41.017,2478.0,2477.1,3.2078]
[1751645956218,0.80692,2477.8,2477.4,0.80701]
[1751645956413,3.2078,2478.9,2477.7,3.2078]
[1751645956610,1.3908,2479.1,2478.4,4.0271]
[1751645956816,0.80659,2478.7,2478.6,7.2349]
[1751645957014,1.3908,2479.1,2478.2,4.5096]
[1751645957215,3.40697,2479.1,2478.3,4.0271]
[1751645957409,1.3908,2479.1,2478.5,4.0271]
[1751645957617,0.80654,2478.9,2478.7,0.80657]
[1751645957815,0.80654,2478.9,2478.6,4.0271]
[1751645957816,0.80652,2479.0,2478.8,0.80655]
[1751645958020,1.4427,2478.9,2478.3,1.3349]
[1751645958220,2.24923,2478.9,2478.7,0.80658]
[1751645958521,2.24923,2478.9,2478.6,4.0271]
[1751645958522,1.4427,2478.9,2478.6,4.0271]
[1751645958721,1.4427,2478.9,2478.5,4.01444]
[1751645958917,1.4427,2478.9,2478.5,3.2078]
[1751645959122,0.80663,2478.6,2478.2,3.2078]
[1751645959324,4.6505,2478.9,2478.3,4.0271]
[1751645959525,1.4427,2478.9,2478.2,7.2349]
[1751645959723,1.4427,2478.9,2478.3,4.0271]
[1751645959724,0.8067,2478.4,2478.3,4.0271]
[1751645959917,4.0145,2478.4,2478.3,4.0271]
[1751645960218,4.0145,2478.4,2477.6,0.19820949]
[1751645960219,0.80691,2477.8,2477.6,0.19820949]
[1751645960416,4.5258,2478.3,2477.7,7.2349]
[1751645960613,4.5258,2478.3,2477.7,3.2078]
[1751645960614,0.80689,2477.8,2477.7,3.2078]
[1751645960818,86.4618,2478.3,2477.7,3.2078]
[1751645961020,1.318,2478.3,2478.1,4.0271]
[1751645961324,3.2078,2479.1,2478.2,4.0271]
[1751645961519,3.2078,2479.1,2477.9,2.01713]
[1751645961520,1.47728007,2479.0,2478.6,4.0271]
[1751645961719,1.47728007,2478.9,2478.8,0.80656]
[1751645961921,0.80641,2479.3,2479.1,0.80646]
[1751645962121,0.8064,2479.3,2479.2,4.0271]
[1751645962426,0.80648,2479.1,2478.9,8.04142]
[1751645962726,0.8065,2479.0,2478.9,4.0271]
[1751645962920,5.22389,2479.2,2478.4,3.2078]
[1751645963218,0.80666,2478.5,2478.4,7.2349]
[1751645963420,0.80666,2478.5,2478.4,3.2078]
[1751645963615,4.5856,2478.9,2478.4,7.2349]
[1751645963916,6.60196,2478.9,2478.4,3.2078]
[1751645964115,2.01648,2478.8,2478.4,7.2349]
[1751645964421,0.80669,2478.4,2478.3,0.80671]
[1751645964621,1.3778,2478.7,2478.3,4.83382]
[1751645964622,0.80668,2478.5,2478.3,4.83382]
[1751645964821,14.75928,2479.0,2478.6,4.0271]
[1751645965021,0.80661,2478.7,2478.6,4.0271]
[1751645965228,0.80661,2478.7,2478.5,0.80664]
[1751645965420,0.80661,2478.7,2478.6,5.4189]
[1751645965621,0.80661,2478.7,2478.6,4.0271]
[1751645966319,0.80666,2478.5,2478.4,3.2078]
[1751645966524,1.3478,2478.9,2478.4,3.2078]
[1751645966826,0.80659,2478.7,2478.6,4.0271]
[1751645967029,3.12658344,2479.0,2478.8,4.0271]
[1751645967228,0.8065,2479.0,2478.9,4.0271]
[1751645967529,0.80648,2479.1,2478.9,4.83363]
[1751645967825,3.91204694,2479.0,2478.9,4.0271]
[1751645968131,6.31334694,2479.2,2478.9,4.0271]
[1751645968426,2.01617,2479.1,2478.0,3.2078]
[1751645968625,0.80675,2478.3,2478.1,0.80678]
[1751645969229,0.80675,2478.3,2478.2,3.16848]
[1751645970024,0.80679,2478.1,2478.0,4.5609]
[1751645970229,2.01699,2478.1,2477.7,3.2078]
[1751645970525,3.2078,2478.3,2478.1,0.80677]
[1751645970728,0.80674,2478.3,2478.2,3.16848]
[1751645970918,0.80672,2478.3,2478.2,0.74773619]
[1751645971122,3.91110746,2478.4,2478.3,0.80672]
[1751645971327,3.2078,2478.6,2478.3,4.85522067]
[1751645971328,0.80663,2478.6,2478.3,4.85522067]
[1751645971632,3.94376947,2478.6,2478.5,0.74773619]
[1751645971823,2.01641,2478.8,2478.3,4.10748448]
[1751645972027,3.94339023,2478.4,2478.3,0.74773619]
[1751645972225,0.80676,2478.2,2478.1,0.7104]
[1751645972722,3.16191402,2478.2,2478.1,1.45813619]
[1751645972924,0.80676,2478.2,2478.1,1.45813619]
[1751645973331,3.16191402,2478.2,2478.1,1.45813619]
[1751645973629,0.80676,2478.2,2478.1,1.45813619]
[1751645974025,2.15535744,2478.2,2478.1,1.45813619]
[1751645975026,1.34859744,2478.2,2478.1,7.26492619]
[1751645975327,1.34859744,2478.2,2478.1,6.45813619]
[1751645975328,2.15535744,2478.2,2478.1,6.45813619]
[1751645975629,4.51810337,2478.2,2478.1,7.26492619]
[1751645976029,3.71134337,2478.2,2478.1,2.26492619]
[1751645976431,4.51810337,2478.2,2478.1,1.45813619]
[1751645976633,3.71134337,2478.2,2478.1,2.26492619]
[1751645976929,2.7027996,2478.2,2478.1,2.26492619]
[1751645977132,1.34005367,2478.2,2478.1,2.26492619]
[1751645977528,1.34005367,2478.2,2478.1,7.26492619]
[1751645977932,1.34005367,2478.2,2478.1,2.26492619]
[1751645978129,2.14681367,2478.2,2478.1,1.45813619]
[1751645978733,1.34005367,2478.2,2478.1,2.26492619]
[1751645979131,2.14681367,2478.2,2478.1,1.45813619]
[1751645979429,2.14681367,2478.2,2478.1,2.26492619]
[1751645979627,2.14681367,2478.2,2478.1,1.45813619]
[1751645979828,1.34005367,2478.2,2478.1,2.26492619]
[1751645980138,2.14681367,2478.2,2478.1,2.26492619]
[1751645980433,2.14681367,2478.2,2478.1,1.45813619]
[1751645982433,1.34005367,2478.2,2477.9,3.2078]
[1751645982627,1.34005367,2478.1,2477.9,3.2078]
[1751645982828,1.29482957,2478.0,2477.9,4.01465]
[1751645983030,1.29482957,2478.0,2477.9,9.01465]
[1751645983231,1.29482957,2478.0,2477.9,9.76238619]
[1751645984638,1e-08,2478.0,2477.9,9.76238619]
[1751645985738,3.13670023,2478.8,2478.7,0.80659]
[1751645985940,3.94320023,2479.0,2478.9,0.74773618]
[1751645986243,2.01625,2479.0,2478.7,0.74773618]
[1751645986439,6.55689023,2479.1,2478.6,3.2078]
[1751645986638,0.80658,2478.8,2478.7,0.74773618]
[1751645986942,0.80655,2478.9,2478.7,0.75940334]
[1751645987140,0.80655,2478.9,2478.8,3.2078]
[1751645987436,0.80656,2478.8,2478.7,0.01166716]
[1751645988039,5.34719023,2479.1,2478.9,0.80652]
[1751645988240,0.8065,2479.0,2478.9,3.95553618]
[1751645988543,0.80656,2478.8,2478.7,0.01166716]
[1751645988746,0.80656,2478.8,2478.7,0.75940334]
[1751645989045,0.80656,2478.8,2478.7,0.01166716]
[1751645991840,0.80656,2478.8,2478.7,3.21946716]
[1751645992040,0.80656,2478.8,2478.7,3.96720334]
[1751645992942,0.80656,2478.8,2478.7,0.01166716]
[1751645993347,2.01669,2478.5,2478.1,3.2078]
[1751645993545,0.80676,2478.2,2478.1,3.2078]
[1751645993936,0.80676,2478.2,2478.1,3.95553618]
[1751645994742,0.80676,2478.2,2478.1,3.2078]
[1751645994943,0.80689,2477.9,2477.8,0.80689]
[1751645995149,0.7047,2478.4,2477.9,0.74773618]
[1751645995443,0.80676,2478.2,2478.1,1.55450618]
[1751645995946,0.80674,2478.3,2478.2,0.80675]
[1751645996140,0.80664,2478.6,2478.5,0.80664]
[1751645996341,0.80664,2478.6,2478.5,0.74773618]
[1751645997440,0.7047,2479.0,2478.6,0.80663]
[1751645997644,0.80657,2478.8,2478.7,0.80656]
[1751645997847,0.80654,2478.9,2478.8,0.74773618]
[1751645998046,2.06820846,2478.9,2478.8,0.74773618]
[1751645998446,3.46881984,2478.9,2478.5,0.80664]
[1751645998650,0.80662,2478.7,2478.6,0.80662]
[1751645999149,0.80669,2478.4,2478.3,3.2078]
[1751645999551,0.80669,2478.4,2478.3,3.95553618]
[1751646000348,0.80669,2478.4,2478.3,4.76226618]
[1751646000654,3.2078,2478.8,2478.3,5.97235618]
[1751646000952,0.80686,2477.9,2477.8,0.80689]
[1751646001149,3.2078,2478.4,2477.8,2.76495618]
[1751646001355,4.01451,2478.4,2478.3,1.55446618]
[1751646001650,0.80663,2478.6,2478.5,0.80664]
[1751646001850,5.22424,2478.8,2478.3,0.74773618]
[1751646001851,0.80662,2478.7,2478.6,1.55433618]
[1751646002151,0.8066,2478.7,2478.6,0.74773618]
[1751646002347,2.177,2478.7,2478.6,0.74773618]
[1751646002545,2.177,2478.7,2478.6,0.80663]
[1751646002751,3.2078,2478.8,2478.7,0.8066]
[1751646002947,3.2078,2478.8,2478.7,1.55433618]
[1751646003154,0.80655,2478.9,2478.8,0.80656]
[1751646003354,0.7047,2479.0,2478.8,0.74773618]
[1751646003557,0.7047,2479.0,2478.9,0.80653]
[1751646003852,0.7047,2479.0,2478.8,0.80654]
[1751646003853,0.80655,2478.9,2478.8,0.80654]
[1751646004047,0.80655,2478.9,2478.8,1.55427618]
[1751646004246,1.51122,2479.0,2478.9,0.80653]
[1751646004445,2.063,2479.1,2478.9,0.74773618]
[1751646004649,0.80651,2479.0,2478.9,0.80651]
[1751646004849,0.80652,2479.0,2478.9,0.8065]
[1751646005164,0.80654,2479.0,2478.9,0.80651]
[1751646005351,0.6598,2479.1,2479.0,0.8065]
[1751646005553,0.80636,2479.5,2479.4,0.80635]
[1751646005855,2.01585,2479.5,2479.0,3.2078]
[1751646006053,0.80643,2479.3,2479.2,0.80643]
[1751646006247,0.6811,2479.6,2479.2,0.74773618]
[1751646006450,1.48743,2479.6,2479.5,0.80634]
[1751646006645,0.80634,2479.5,2479.4,1.55408618]
[1751646006849,2.0949,2479.6,2479.0,3.2078]
[1751646006850,4.11067,2479.6,2479.0,3.2078]
[1751646007053,1.4138,2479.4,2479.3,0.8064]
[1751646007247,3.2078,2480.0,2479.3,3.2078]
[1751646007453,0.80628,2479.7,2479.6,0.74773618]
[1751646007948,1.4138,2479.9,2479.2,2.01609]
[1751646008148,1.4138,2479.9,2479.0,6.59324]
[1751646008451,0.8064,2479.4,2479.3,1.55413618]
[1751646008659,0.8064,2479.4,2479.3,0.74773618]
[1751646008853,0.80636,2479.5,2479.4,0.80634]
[1751646009159,0.80637,2479.4,2479.3,1.55411618]
[1751646009550,2.01585,2479.5,2479.0,3.2078]
[1751646009755,0.80647,2479.1,2479.0,3.2078]
[1751646009956,0.80647,2479.1,2479.0,4.0143]
[1751646010158,0.80647,2479.1,2479.0,4.76203618]
[1751646010360,0.80656,2478.9,2478.8,0.80654]
[1751646010956,0.80656,2478.9,2478.8,1.55427618]
[1751646011257,0.80656,2478.8,2478.7,3.2078]
[1751646011458,0.80656,2478.8,2478.7,4.0144]
[1751646011661,0.80656,2478.8,2478.7,4.76213618]
[1751646011853,0.80656,2478.8,2478.7,1.55433618]
[1751646012354,0.80666,2478.6,2478.5,0.80664]
[1751646012848,0.80679,2478.2,2478.1,4.01458]
[1751646013155,0.80679,2478.1,2477.8,3.2078]
[1751646013357,0.80686,2477.9,2477.8,0.74773618]
[1751646013557,4.01458,2478.2,2478.0,1.55453618]
[1751646013761,0.80678,2478.2,2478.1,1.55452618]
[1751646014058,0.80678,2478.2,2478.1,0.74773618]
[1751646014262,0.80682,2478.1,2477.9,0.80683]
[1751646014559,47.40599,2478.5,2477.7,2.0607]
[1751646014752,45.3893,2478.5,2478.1,0.74773618]
[1751646014953,0.80676,2478.2,2478.1,1.55450618]
[1751646015259,0.80668,2478.5,2478.4,0.80669]
[1751646015453,4.03479,2477.6,2476.7,3.38392313]
[1751646015656,0.80748,2476.0,2475.9,10.30207326]
[1751646015958,4.01528,2476.0,2475.9,0.79295265]
[1751646016157,8.60328364,2476.0,2474.9,0.20015272]
[1751646016364,3.2078,2475.6,2475.3,0.80769]
[1751646016551,3.2078,2475.6,2475.0,3.2078]
[1751646016755,3.2078,2475.9,2475.3,3.2078]
[1751646016961,3.2078,2475.9,2475.6,0.80758]
[1751646017261,0.80755,2475.8,2475.3,3.40600949]
[1751646017557,12.827,2475.7,2474.9,0.20015272]
[1751646017861,3.2078,2475.6,2474.9,0.39836221]
[1751646018056,3.2078,2475.6,2475.5,0.80764]
[1751646018257,16.84226,2476.1,2475.6,0.8076]
[1751646018556,3.2078,2476.1,2476.0,0.80748]
[1751646018759,3.2078,2476.4,2475.4,3.2078]
[1751646018961,1.40352023,2476.3,2475.6,1.4229]
[1751646019156,4.5373,2476.4,2475.1,0.6852]
[1751646019157,4.5373,2476.4,2475.1,3.2078]
[1751646019463,1.40304863,2476.3,2476.2,0.80741]
[1751646019668,1.40304863,2476.3,2475.6,3.2078]
[1751646019964,3.2078,2476.1,2475.8,0.80752]
[1751646020166,1.3295,2476.0,2475.5,3.2078]
[1751646020353,3.2078,2475.8,2474.9,0.20015272]
[1751646020557,3.2078,2476.1,2476.0,0.80748]
[1751646020858,3.2078,2476.1,2475.5,3.2078]
[1751646020859,40.8,2476.4,2475.6,1.4229]
[1751646021058,3.2078,2476.2,2475.6,1.4229]
[1751646021252,0.6816,2476.6,2476.1,3.2078]
[1751646021464,3.2078,2476.7,2476.6,0.80728]
[1751646021960,3.2078,2476.7,2476.2,1.4198]
[1751646021961,44.0078,2476.7,2476.2,1.4198]
[1751646022162,44.0078,2476.7,2476.6,0.80728]
[1751646022460,45.40457871,2476.7,2476.6,0.80728]
[1751646022660,44.0078,2476.7,2476.6,0.80728]
[1751646023361,3.2078,2476.7,2476.3,1.4198]
[1751646023562,4.01505,2476.7,2476.4,0.80732]
[1751646023762,3.2078,2476.7,2476.3,1.61800949]
[1751646023959,3.2078,2476.7,2476.6,0.80728]
[1751646024560,3.2078,2476.7,2476.5,0.8073]
[1751646025062,0.8073,2476.6,2475.9,3.2078]
[1751646025256,3.2078,2476.7,2475.9,3.2078]
[1751646025257,3.2078,2476.7,2476.0,1.3892]
[1751646025457,0.8074,2476.3,2475.9,3.40600949]
[1751646025759,3.2078,2476.7,2475.9,4.79520949]
[1751646026360,4.01507,2476.7,2476.1,2.01857]
[1751646026562,0.80729,2476.6,2476.4,0.80732]
[1751646026760,2.0182,2476.6,2475.9,3.2078]
[1751646026954,2.0182,2476.6,2475.5,3.2078]
[1751646026955,3.2078,2476.4,2475.5,3.2078]
[1751646027161,0.6532,2476.3,2476.2,0.80741]
[1751646027469,57.5678,2476.7,2476.0,2.01869]
[1751646027761,4.01506,2476.7,2476.6,0.80728]
[1751646028061,0.8073,2476.6,2476.4,0.80733]
[1751646028262,0.6532,2476.9,2476.7,0.80721]
[1751646028459,3.2078,2476.8,2476.2,3.40583]
[1751646028655,3.2078,2476.8,2476.3,2.01845]
[1751646028861,0.80731,2476.5,2476.4,1.3873]
[1751646029062,0.80731,2476.5,2476.2,0.19820949]
[1751646029063,0.8073,2476.6,2476.2,0.19820949]
[1751646029367,0.80723,2476.8,2476.3,1.3873]
[1751646029563,0.6532,2476.9,2476.4,3.2078]
[1751646029867,2.01804,2476.8,2475.9,1.3362]
[1751646030070,0.80738,2476.3,2475.9,2.88310949]
[1751646030264,2.01815,2476.7,2475.9,2.88310949]
[1751646030265,0.80736,2476.4,2476.1,0.80742]
[1751646030466,0.80736,2476.4,2476.2,0.80739]
[1751646030666,0.80749,2476.0,2475.8,3.2078]
[1751646030969,0.80729,2476.6,2475.8,3.40600949]
[1751646031266,3.2078,2476.7,2475.8,3.40600949]
[1751646031267,0.80731,2476.5,2475.9,3.36747]
[1751646031463,3.2078,2476.7,2475.9,3.36747]
[1751646031672,2.01828,2476.5,2476.0,0.80746]
[1751646031863,1.3788,2476.6,2475.9,1.54690949]
[1751646032164,3.39703,2476.6,2475.9,1.54690949]
[1751646032370,2.01856,2476.2,2475.7,4.01535]
[1751646032563,2.01856,2476.2,2475.7,3.40600949]
[1751646032759,0.80754,2475.8,2475.7,4.01536]
[1751646032960,3.2078,2476.1,2475.4,4.5565]
[1751646033160,3.2078,2476.1,2475.4,4.75470949]
[1751646033465,40.8,2476.0,2475.6,0.80759]
[1751646033671,41.60749,2476.0,2475.5,0.80764]
[1751646033861,40.8,2476.0,2475.9,0.80751]
[1751646034064,3.2078,2476.4,2476.3,0.80738]
[1751646034267,2.01837,2476.4,2475.6,0.19820949]
[1751646034467,3.2078,2476.4,2475.7,3.38888]
[1751646034663,58.146,2476.6,2475.8,2.01885]
[1751646034872,60.16422,2476.6,2475.9,1.37]
[1751646035177,0.80747,2476.0,2475.9,1.37]
[1751646035370,0.80751,2475.9,2475.8,3.2078]
[1751646036272,13.5142,2476.2,2475.8,3.2078]
[1751646036468,0.80751,2475.9,2475.8,4.01532]
[1751646036671,0.80761,2475.6,2475.5,1.37]
[1751646036876,0.80761,2475.6,2475.5,0.19820949]
[1751646037467,3.2078,2475.8,2475.3,1.3511]
[1751646037668,5.22671,2475.8,2475.4,0.80766]
[1751646037975,0.80763,2475.6,2475.5,0.80763]
[1751646038165,0.80763,2475.6,2475.3,1.54930949]
[1751646038166,3.2078,2475.8,2475.7,0.80757]
[1751646038365,3.2078,2476.0,2475.4,3.2078]
[1751646038572,2.01865,2476.1,2475.5,1.3511]
[1751646038766,1.45658749,2476.0,2475.5,1.3511]
[1751646038971,0.80752,2475.9,2475.8,0.80753]
[1751646039271,1.4587074,2476.1,2475.7,0.80755]
[1751646039473,3.4773474,2476.1,2475.6,0.80759]
[1751646039669,44.5588,2476.3,2475.7,1.3427]
[1751646039865,2.01861,2476.1,2475.7,2.15025]
[1751646040176,2.01887,2475.8,2475.2,0.6756]
[1751646040378,0.8076,2475.7,2475.6,0.8076]
[1751646040572,0.80756,2475.8,2475.7,0.80756]
[1751646040779,41.337,2476.0,2475.5,1.3427]
[1751646041076,0.80761,2475.6,2475.5,2.15032]
[1751646041275,0.8076,2475.7,2475.6,0.8076]
[1751646041474,2.27057702,2475.9,2475.5,3.40600949]
[1751646041775,4.01526,2476.1,2475.6,3.36166]
[1751646042078,0.80754,2475.9,2475.8,0.80753]
[1751646042275,0.6688,2476.4,2475.9,2.01878]
[1751646042573,2.16732924,2476.9,2476.5,2.01823]
[1751646042780,3.13670023,2477.8,2476.7,3.2078]
[1751646042979,0.80711,2477.2,2477.0,3.2078]
[1751646043182,3.40085,2477.7,2477.0,4.01492]
[1751646043373,3.2078,2477.5,2477.0,3.2078]
[1751646043576,3.2078,2477.5,2477.3,0.80704]
[1751646043777,4.01479,2477.5,2477.2,0.80707]
[1751646043977,0.80699,2477.5,2477.3,0.80705]
[1751646044175,0.80702,2477.4,2477.2,0.80707]
[1751646044376,0.80703,2477.4,2477.2,0.80708]
[1751646044577,0.80711,2477.2,2477.0,3.2078]
[1751646044981,0.80706,2477.3,2477.0,4.01495]
[1751646045177,0.80704,2477.4,2477.1,0.80712]
[1751646045480,0.80706,2477.3,2477.1,0.80711]
[1751646045681,46.1085,2477.6,2477.0,4.01493]
[1751646045983,48.12595,2477.6,2476.9,0.80716]
[1751646046183,46.1085,2477.6,2476.7,12.84]
[1751646046479,0.80713,2477.1,2476.9,0.80717]
[1751646046680,0.80713,2477.1,2476.6,58.8737]
[1751646046879,0.8071,2477.2,2476.6,58.8737]
[1751646047074,0.80707,2477.3,2477.0,0.80714]
[1751646047276,46.1085,2477.6,2476.6,58.8737]
[1751646047475,0.80716,2477.0,2476.8,0.8072]
[1751646047782,3.2078,2476.9,2476.5,0.8073]
[1751646047982,4.01509,2476.6,2476.4,0.80733]
[1751646048279,41.227,2477.3,2476.4,3.2078]
[1751646048574,0.80719,2476.9,2476.7,0.80723]
[1751646048782,0.80716,2477.0,2476.8,0.8072]
[1751646048982,0.80719,2476.9,2476.7,0.80723]
[1751646049182,0.8072,2476.9,2476.7,0.80723]
[1751646049383,43.21477,2477.2,2476.4,3.2078]
[1751646049583,2.0178,2477.1,2476.5,0.80729]
[1751646049785,0.80725,2476.8,2476.6,0.80727]
[1751646050185,1.3703,2477.1,2476.7,0.80723]
[1751646050386,1.3703,2477.1,2476.9,0.80717]
[1751646050387,0.80713,2477.1,2476.9,0.80717]
[1751646050683,0.80722,2476.8,2476.6,0.80725]
[1751646050878,0.80722,2476.8,2476.4,3.2078]
[1751646051083,0.80731,2476.5,2476.4,3.2078]
[1751646051387,0.8074,2476.3,2476.1,4.01521]
[1751646051580,0.80741,2476.2,2476.1,4.01524]
[1751646051781,0.80741,2476.2,2476.1,3.2078]
[1751646052080,0.80741,2476.2,2476.1,4.01524]
[1751646052276,0.8074,2476.3,2476.2,0.80741]
[1751646052485,0.80733,2476.5,2476.4,0.80735]
[1751646052783,0.7207,2476.7,2476.3,0.80736]
[1751646053086,0.8074,2476.3,2476.1,3.2078]
[1751646053277,0.80734,2476.5,2476.3,0.80736]
[1751646053478,3.9285,2476.7,2476.4,0.80733]
[1751646053679,0.8073,2476.6,2476.4,0.80732]
[1751646053883,0.8073,2476.6,2476.5,0.80731]
[1751646054081,0.7207,2476.7,2476.5,0.80729]
[1751646054285,0.80728,2476.6,2476.4,0.80732]
[1751646054483,0.7207,2476.7,2476.6,0.80728]
[1751646054679,1.52796,2476.7,2476.6,0.80728]